bitfinex/quotes_ETHUSD_20240607
["timestamp","ask_amount","ask_price","bid_price","bid_amount"]
[1717730913560,0.56809042,3805.4,3805.2,0.03860897]
[1717730914077,2.62778,3805.5,3805.2,0.03860897]
[1717730914579,3.19587042,3805.5,3805.2,0.03860897]
[1717730914880,2.62778,3805.5,3805.2,0.03860897]
[1717730915455,3.19587042,3805.5,3805.2,0.03860897]
[1717730915666,2.62778,3805.5,3805.2,0.03860897]
[1717730916189,3.19587042,3805.5,3805.2,0.03860897]
[1717730916543,0.56809042,3805.4,3805.2,0.03860897]
[1717730919684,0.56809042,3805.3,3805.2,0.03860897]
[1717730919981,0.56809042,3805.4,3805.2,0.03860897]
[1717730920194,0.56809042,3805.3,3805.2,0.03860897]
[1717730920539,0.56809042,3805.4,3805.2,0.03860897]
[1717730920790,0.56809042,3805.3,3805.2,0.03860897]
[1717730920954,0.56809042,3805.4,3805.2,0.03860897]
[1717730921342,0.56809042,3805.3,3805.2,0.03860897]
[1717730921660,0.56809042,3805.4,3805.2,0.03860897]
[1717730921890,0.56809042,3805.3,3805.2,0.03860897]
[1717730922095,0.56809042,3805.4,3805.2,0.03860897]
[1717730922633,0.56806234,3805.3,3805.2,0.03860897]
[1717730922777,0.56806234,3805.4,3805.2,0.03860897]
[1717730922979,0.56806234,3805.3,3805.2,0.03860897]
[1717730923187,0.56806234,3805.4,3805.2,0.03860897]
[1717730923485,2.62778,3805.5,3805.2,0.03860897]
[1717730923486,0.56806234,3805.3,3805.2,0.03860897]
[1717730923685,0.56806232,3805.4,3805.2,0.03860897]
[1717730924103,0.56806232,3805.3,3805.2,0.03860897]
[1717730924424,0.56806232,3805.4,3805.2,0.03860897]
[1717730924769,0.56806232,3805.3,3805.2,0.03860897]
[1717730924973,0.56806232,3805.4,3805.2,0.03860897]
[1717730925175,0.56806232,3805.3,3805.2,0.03860897]
[1717730925674,0.56806232,3805.4,3805.2,0.03860897]
[1717730925873,0.56806232,3805.3,3805.2,0.03860897]
[1717730926174,2.62778,3805.5,3805.2,0.03860897]
[1717730926175,0.56806232,3805.4,3805.2,0.03860897]
[1717730926519,0.56806232,3805.3,3805.2,0.03860897]
[1717730926895,0.56806232,3805.4,3805.2,0.03860897]
[1717730927090,0.56806232,3805.3,3805.2,0.03860897]
[1717730927282,0.90657628,3805.4,3805.2,0.03860897]
[1717730927498,0.56806232,3805.3,3805.2,0.03860897]
[1717730928335,3.19597232,3805.3,3805.2,0.03860897]
[1717730928694,3.19597232,3805.3,3804.5,2.4111]
[1717730928695,2.6281,3805.1,3804.5,2.4111]
[1717730928895,2.62824,3804.9,3804.6,0.03835994]
[1717730929091,0.56806232,3804.8,3804.6,0.03835994]
[1717730929328,0.56806232,3804.7,3804.1,4.99199]
[1717730929540,0.56806232,3804.8,3804.1,4.99199]
[1717730929828,0.56806232,3804.8,3804.2,0.82635994]
[1717730930063,0.56806232,3804.7,3804.2,0.82635994]
[1717730930359,0.56806232,3804.8,3804.2,0.82635994]
[1717730930563,2.62824,3804.9,3804.2,0.82635994]
[1717730930738,2.62834,3804.7,3804.2,0.82635994]
[1717730931067,2.62834,3804.7,3804.2,0.788]
[1717730932070,2.62834,3804.7,3804.3,0.03835994]
[1717730932370,2.62834,3804.7,3804.2,0.788]
[1717730932868,2.62834,3804.7,3804.3,0.03835994]
[1717730933259,2.62834,3804.7,3804.2,0.788]
[1717730933650,2.62834,3804.7,3804.3,0.03835994]
[1717730934058,3.19620232,3805.0,3804.4,0.788]
[1717730935268,3.19620232,3805.0,3804.4,0.570778]
[1717730935428,3.19620232,3805.0,3804.4,0.788]
[1717730935632,3.19628795,3805.0,3804.4,0.788]
[1717730937235,3.19628603,3805.0,3804.4,0.788]
[1717730938939,0.56814603,3805.0,3804.5,2.3079]
[1717730939139,0.56814603,3805.0,3804.9,2.3079]
[1717730939345,2.62795,3805.3,3804.9,2.3079]
[1717730941672,2.6281,3805.1,3804.6,2.2876]
[1717730942177,3.03744603,3805.4,3804.6,2.2876]
[1717730942178,2.6282,3804.9,3804.6,2.2876]
[1717730942877,2.6282,3804.9,3804.7,0.038516]
[1717730945033,0.56814603,3805.4,3804.9,2.3465]
[1717730947892,2.62793,3805.3,3804.9,2.3465]
[1717730948468,2.62793,3805.3,3804.7,2.3465]
[1717730949110,2.62806,3805.1,3804.7,2.3465]
[1717730949264,2.62806,3805.1,3804.8,0.00418707]
[1717730949466,2.62806,3805.1,3804.7,2.3465]
[1717730949688,2.62806,3805.1,3804.8,0.03847286]
[1717730949962,2.62806,3805.1,3804.5,3.1345]
[1717730950408,2.62806,3805.1,3804.6,0.03847285]
[1717730951065,2.62821,3804.9,3804.6,0.03847285]
[1717730951267,2.62821,3804.9,3804.6,0.03425815]
[1717730951466,2.62821,3804.9,3804.5,2.3465]
[1717730956409,2.62821,3804.9,3804.6,0.788]
[1717730956814,2.62821,3804.9,3804.7,0.03847285]
[1717730958110,2.62802,3805.2,3804.7,0.03847285]
[1717730958899,2.62802,3805.2,3804.6,0.788]
[1717730959079,3.19613253,3805.2,3804.9,2.4879]
[1717730959281,0.56811253,3805.2,3804.9,2.4879]
[1717730959477,0.56811253,3805.4,3804.9,2.4879]
[1717730959676,0.56811253,3805.3,3805.0,0.788]
[1717730959877,0.56811253,3805.4,3805.0,0.590421]
[1717730960195,0.56811253,3805.4,3805.1,0.788]
[1717730960399,0.56811253,3805.4,3805.0,0.590421]
[1717730960605,0.56811253,3805.4,3805.2,0.03834005]
[1717730963017,0.56811253,3805.7,3805.1,0.5706491]
[1717730963394,0.56811253,3805.6,3805.1,0.5706491]
[1717730963714,0.56811253,3805.7,3805.0,0.788]
[1717730963925,0.56804988,3805.7,3805.1,0.03834005]
[1717730964086,0.56804988,3805.7,3805.0,0.788]
[1717730964287,2.6276,3805.8,3805.1,0.03834005]
[1717730964612,3.19564988,3805.8,3805.0,0.788]
[1717730964811,3.19564988,3805.8,3805.0,1.378407]
[1717730965192,0.56804988,3805.7,3805.0,1.378407]
[1717730965399,2.6276,3805.8,3805.2,0.788]
[1717730965609,3.19564988,3805.8,3805.2,0.788]
[1717730965824,3.19564988,3805.8,3805.0,1.378407]
[1717730966024,2.6276,3805.8,3805.0,1.378407]
[1717730966386,3.19564988,3805.8,3805.0,1.378407]
[1717730966591,2.6276,3805.8,3805.2,0.788]
[1717730969122,2.6276,3805.8,3805.3,2.447]
[1717730969898,2.6276,3805.8,3805.4,0.03817005]
[1717730970796,2.6276,3805.8,3805.3,2.447]
[1717730973144,2.6276,3805.8,3805.3,3.0333]
[1717730978341,2.6276,3805.8,3805.3,2.447]
[1717730978649,2.6276,3805.8,3805.3,0.788]
[1717730978816,2.6276,3805.8,3805.3,3.41589]
[1717730979016,2.6276,3805.8,3805.5,0.788]
[1717730979203,0.56801718,3805.9,3805.6,2.327]
[1717730980238,2.62736,3806.1,3805.6,2.327]
[1717730980843,2.62756,3805.9,3805.3,3.41589]
[1717730981145,2.62756,3805.9,3805.4,0.03683994]
[1717730983940,2.62756,3805.9,3805.3,3.41589]
[1717730984147,2.62756,3805.9,3805.4,2.2826]
[1717730984447,2.62756,3805.9,3805.5,0.03684658]
[1717730988057,3.19557274,3805.9,3805.5,0.03684658]
[1717730988252,2.62756,3805.9,3805.5,0.03684658]
[1717730988555,2.62756,3805.9,3805.4,2.2826]
[1717730988910,3.19557274,3805.9,3805.4,2.2826]
[1717730989312,2.62756,3805.9,3805.4,2.2826]
[1717730990077,3.19557274,3805.9,3805.4,2.2826]
[1717730990252,2.62756,3805.9,3805.4,2.2826]
[1717730990457,0.56801274,3806.3,3805.4,2.2826]
[1717730990458,2.62735,3806.2,3805.5,2.62776]
[1717730990652,2.62735,3806.2,3805.8,0.788]
[1717730990827,3.19536274,3806.2,3805.8,0.788]
[1717730991014,2.62735,3806.2,3805.8,0.788]
[1717730991650,2.62735,3806.2,3805.7,2.3864]
[1717730991958,2.62735,3806.2,3805.8,0.03684658]
[1717730992111,2.62735,3806.2,3805.8,0.82484658]
[1717730997930,0.56801274,3806.4,3805.8,0.82484658]
[1717730998126,0.56801274,3806.4,3805.8,0.82079763]
[1717730998346,0.56801274,3806.4,3805.8,0.788]
[1717730998742,2.62722,3806.3,3805.8,0.788]
[1717731001745,0.56801274,3806.4,3805.8,0.788]
[1717731001947,0.56801274,3806.4,3806.0,0.788]
[1717731002169,0.56793338,3806.5,3806.0,0.788]
[1717731002370,2.62716,3806.4,3805.8,0.788]
[1717731003365,2.62716,3806.4,3805.9,0.580202]
[1717731003539,2.62716,3806.4,3806.0,0.788]
[1717731004079,2.62701,3806.7,3806.1,2.4404]
[1717731004287,3.19494338,3806.7,3806.1,2.4404]
[1717731004639,2.62701,3806.7,3806.1,2.4404]
[1717731005578,2.62701,3806.7,3806.2,0.788]
[1717731005983,2.62701,3806.7,3806.1,2.4404]
[1717731006479,2.62701,3806.7,3806.2,0.788]
[1717731009083,0.56793338,3806.8,3806.4,0.788]
[1717731010360,0.56793338,3806.8,3806.5,3.0385]
[1717731010747,0.56786064,3806.8,3806.5,3.0385]
[1717731011367,0.56786064,3806.8,3805.6,2.62764]
[1717731011368,0.56786064,3806.8,3806.7,3.0385]
[1717731011570,2.62637,3807.6,3806.9,2.62679]
[1717731011785,2.62637,3807.6,3807.3,0.788]
[1717731012151,0.1252087,3807.7,3807.3,3.0385]
[1717731012820,2.7514987,3807.7,3807.3,3.0385]
[1717731013045,2.7514987,3807.7,3806.9,5.04939]
[1717731013199,2.62642,3807.5,3807.0,0.788]
[1717731017520,2.62642,3807.5,3807.1,0.03612309]
[1717731019831,2.62658,3807.3,3807.1,0.03612309]
[1717731020260,3.115858,3807.3,3807.1,0.03612309]
[1717731020460,2.2662,3807.2,3807.1,0.03612309]
[1717731020662,2.2662,3807.2,3806.3,2.4992]
[1717731020958,2.2662,3807.2,3806.4,0.03596383]
[1717731021158,2.83396817,3807.2,3806.4,0.03596383]
[1717731021325,0.67378262,3807.1,3806.4,0.03596383]
[1717731022242,2.62693,3806.8,3806.4,0.03596383]
[1717731022432,2.62693,3806.8,3806.3,2.4992]
[1717731025527,2.62693,3806.8,3806.4,0.788]
[1717731026864,2.62704,3806.6,3806.3,2.4992]
[1717731027028,2.62704,3806.6,3806.2,0.788]
[1717731027226,2.62704,3806.6,3806.4,0.03611643]
[1717731030332,10.09058,3807.3,3806.4,0.82411643]
[1717731030333,2.62686,3806.9,3806.4,0.82411643]
[1717731030647,2.62686,3806.9,3806.7,2.3657]
[1717731030850,2.62686,3806.9,3806.8,0.0039109]
[1717731031235,2.62686,3806.9,3806.8,0.7919109]
[1717731031971,3.19442442,3807.2,3806.8,0.7919109]
[1717731032140,3.19442442,3807.2,3806.8,0.788]
[1717731032472,2.62664,3807.2,3806.8,0.788]
[1717731032827,3.19443111,3807.2,3806.9,0.032289]
[1717731033026,2.62664,3807.2,3807.0,0.788]
[1717731036332,2.62664,3807.2,3805.5,3.37773]
[1717731036333,2.62676,3807.0,3806.3,2.2658]
[1717731036852,2.62676,3807.0,3806.4,0.788]
[1717731037052,2.62676,3807.0,3806.6,0.788]
[1717731037641,2.6269,3806.8,3806.6,0.788]
[1717731038557,2.6269,3806.8,3806.4,0.788]
[1717731039159,2.62705,3806.6,3805.8,2.62752]
[1717731039379,2.62705,3806.6,3806.2,0.788]
[1717731040103,2.62705,3806.6,3806.4,0.788]
[1717731040693,2.62684,3806.9,3806.4,3.1488]
[1717731041999,3.19448639,3807.2,3806.6,0.788]
[1717731042171,3.19448639,3807.2,3806.8,0.788]
[1717731042583,3.19448639,3807.2,3806.9,2.31]
[1717731043073,3.19448639,3807.2,3806.8,0.788]
[1717731043260,3.19448639,3807.2,3806.8,1.360497]
[1717731043459,3.19441528,3807.2,3806.9,0.0360368]
[1717731043902,2.62664,3807.2,3806.9,0.0360368]
[1717731044406,3.19440707,3807.2,3806.9,0.0360368]
[1717731044781,2.62664,3807.2,3806.8,1.360497]
[1717731045008,2.62664,3807.2,3806.9,2.8160467]
[1717731048402,2.62645,3807.5,3807.0,0.788]
[1717731048714,0.69297577,3807.7,3807.0,2.6267]
[1717731048881,2.62633,3807.6,3807.0,3.77510467]
[1717731049204,2.62633,3807.6,3807.1,0.0360368]
[1717731049581,2.62633,3807.6,3807.0,3.77510467]
[1717731049783,2.62633,3807.6,3807.1,0.61924047]
[1717731049982,2.62647,3807.4,3807.1,0.65527727]
[1717731050296,2.62647,3807.4,3807.1,0.0360368]
[1717731058472,3.19426873,3807.4,3807.1,0.0360368]
[1717731058702,2.6267,3807.1,3806.7,0.788]
[1717731058905,2.6267,3807.1,3806.8,0.03590744]
[1717731059310,2.6267,3807.1,3806.8,0.788]
[1717731061389,2.62686,3806.9,3806.2,2.2662]
[1717731061606,2.62686,3806.9,3806.7,0.788]
[1717731062391,2.62686,3806.9,3806.8,0.0039109]
[1717731063942,2.62686,3806.9,3806.8,2.3060109]
[1717731064234,2.62665,3807.2,3806.8,2.3060109]
[1717731064541,2.62665,3807.2,3806.9,0.788]
[1717731064886,2.62665,3807.2,3807.0,0.0038833]
[1717731065921,2.62665,3807.2,3807.1,0.03602354]
[1717731068989,2.62645,3807.5,3807.1,0.03602354]
[1717731069188,2.62645,3807.5,3807.1,0.82402354]
[1717731069486,2.62645,3807.5,3807.3,0.788]
[1717731069714,0.56779873,3807.6,3807.4,0.03602354]
[1717731070229,0.56779873,3807.6,3807.3,0.788]
[1717731070427,0.56779873,3807.6,3807.5,0.03602354]
[1717731071225,0.1252087,3807.7,3807.5,0.03602354]
[1717731073218,0.1252087,3807.7,3807.6,2.4271]
[1717731073564,0.1252087,3807.7,3807.6,2.46312354]
[1717731074123,0.1252087,3807.7,3807.6,2.78823589]
[1717731078853,0.1252087,3807.7,3807.6,3.57623589]
[1717731080068,0.1252087,3807.7,3807.6,2.78823589]
[1717731080490,0.1252087,3807.7,3807.6,1.14913589]
[1717731084105,0.1252087,3807.7,3807.6,3.56643589]
[1717731086462,0.1252087,3807.7,3807.6,0.36113589]
[1717731086772,0.1252087,3807.7,3807.6,0.03602354]
[1717731086976,0.1252087,3807.7,3807.6,2.52962354]
[1717731090363,0.1252087,3807.7,3807.6,3.31762354]
[1717731090998,0.1252087,3807.7,3807.6,3.86762354]
[1717731092843,0.1252087,3807.7,3807.6,3.07962354]
[1717731093003,0.1252087,3807.7,3807.6,4.43822989]
[1717731097730,0.1252087,3807.7,3807.6,7.06454989]
[1717731099021,0.1252087,3807.7,3807.6,9.69086989]
[1717731102939,0.1252087,3807.7,3807.6,6.27654989]
[1717731103219,0.1252087,3807.7,3807.6,7.06454989]
[1717731103382,0.1252087,3807.7,3807.6,9.69086989]
[1717731104925,0.1252087,3807.7,3807.6,6.51454989]
[1717731105082,0.1252087,3807.7,3807.6,4.02094989]
[1717731105885,0.1252087,3807.7,3807.6,3.23294989]
[1717731106114,0.1252087,3807.7,3807.6,4.02094989]
[1717731106304,0.1252087,3807.7,3807.6,4.57094989]
[1717731109060,0.1252087,3807.7,3807.6,3.23294989]
[1717731109347,0.1252087,3807.7,3807.6,4.02094989]
[1717731115930,0.1252087,3807.7,3807.6,4.57094989]
[1717731119482,0.1252087,3807.7,3807.6,6.83144989]
[1717731121471,0.1252087,3807.7,3807.6,9.45776989]
[1717731122007,0.1252087,3807.7,3807.6,7.41203602]
[1717731122295,0.1252087,3807.7,3807.6,0.03602354]
[1717731124904,0.1252087,3807.7,3807.6,0.82402354]
[1717731127479,0.1252087,3807.7,3807.6,0.03602354]
[1717731127902,0.1252087,3807.7,3807.6,0.82402354]
[1717731128413,0.1252087,3807.7,3807.6,0.03602354]
[1717731128784,0.1252087,3807.7,3807.6,0.82402354]
[1717731129315,0.1252087,3807.7,3807.6,0.03602354]
[1717731130979,0.1252087,3807.7,3807.6,0.82402354]
[1717731131183,0.1252087,3807.7,3807.6,0.03602354]
[1717731131416,0.1252087,3807.7,3807.6,0.82402354]
[1717731132251,0.1252087,3807.7,3807.6,0.03602354]
[1717731132539,1.7019307,3807.7,3807.6,0.03602354]
[1717731132743,1.7019307,3807.7,3807.3,0.788]
[1717731133126,2.62632,3807.6,3807.4,0.03142933]
[1717731133362,2.62664,3807.2,3806.3,2.62722]
[1717731133562,2.62664,3807.2,3806.4,0.03142932]
[1717731133764,2.62664,3807.2,3806.6,0.788]
[1717731133765,4.20379512,3807.2,3806.6,0.788]
[1717731133968,1.57715512,3807.1,3806.6,0.788]
[1717731134171,1.57715512,3807.1,3806.3,2.62722]
[1717731134332,4.20379512,3807.2,3806.6,0.788]
[1717731135039,2.62676,3807.0,3806.6,0.788]
[1717731135252,2.4569,3806.9,3806.6,0.788]
[1717731135452,2.4569,3806.9,3806.7,0.03165141]
[1717731137369,2.4569,3806.9,3806.7,0.81965141]
[1717731138264,2.62687,3806.8,3806.7,0.03165141]
[1717731138670,2.62687,3806.8,3806.5,0.788]
[1717731139173,2.62687,3806.8,3806.6,0.03165141]
[1717731148368,3.135247,3806.8,3806.6,0.03165141]
[1717731148555,3.135247,3806.8,3806.3,0.788]
[1717731148754,2.62704,3806.6,3806.4,0.03191005]
[1717731150786,2.62704,3806.6,3806.3,0.788]
[1717731150995,2.62704,3806.6,3806.4,0.03191005]
[1717731151288,2.62704,3806.6,3806.3,0.788]
[1717731151651,2.62704,3806.6,3806.4,0.03191005]
[1717731154430,5.08377,3806.9,3806.4,0.03191005]
[1717731154583,2.62687,3806.9,3806.5,0.788]
[1717731154928,2.62687,3806.9,3806.7,0.788]
[1717731155283,2.62687,3806.9,3806.8,0.0039109]
[1717731155800,2.62687,3806.9,3806.5,0.788]
[1717731156416,5.09956,3806.7,3806.2,2.62724]
[1717731156615,5.09956,3806.7,3806.4,0.788]
[1717731157020,5.09956,3806.7,3806.5,0.02795774]
[1717731157227,5.09956,3806.7,3806.4,0.788]
[1717731157424,6.67681083,3806.7,3806.6,0.02797155]
[1717731157583,6.67681083,3806.7,3806.5,0.02795774]
[1717731157784,6.67681083,3806.7,3806.4,0.788]
[1717731158090,6.67681083,3806.7,3806.5,0.02827941]
[1717731158300,1.57725083,3806.7,3806.4,0.788]
[1717731158823,1.57725083,3806.7,3806.5,0.00395231]
[1717731159019,2.62679,3807.0,3806.5,0.00395231]
[1717731159325,1.57728842,3806.8,3806.5,0.00395231]
[1717731159625,1.57728842,3806.8,3806.6,0.03223172]
[1717731160287,1.57728842,3806.7,3806.6,0.03223172]
[1717731161290,0.56782383,3806.9,3806.6,0.03223172]
[1717731161591,0.56782383,3806.8,3806.6,0.03223172]
[1717731161791,0.56782383,3806.9,3806.6,0.03223172]
[1717731162030,0.56782383,3806.8,3806.6,0.03223172]
[1717731162336,0.56782383,3806.7,3806.6,0.03223172]
[1717731162723,0.56785041,3806.7,3806.6,0.03223172]
[1717731164133,2.90075041,3806.7,3806.6,0.03223172]
[1717731165055,0.56785041,3806.7,3806.6,0.03223172]
[1717731169054,0.56782932,3806.7,3806.6,0.03223172]
[1717731174172,0.56784201,3806.7,3806.6,0.03223172]
[1717731178687,0.88731521,3806.7,3806.6,0.03223172]
[1717731179971,2.62709,3806.5,3806.0,0.788]
[1717731180277,1.57744137,3806.1,3805.7,2.3985]
[1717731180479,1.57744137,3806.2,3805.7,2.3985]
[1717731180778,1.57744137,3806.2,3806.0,0.788]
[1717731181082,2.14528338,3806.1,3806.0,0.788]
[1717731181444,2.1453498,3806.1,3806.0,0.788]
[1717731181982,0.56788671,3806.1,3806.0,0.788]
[1717731182279,2.14534942,3806.1,3806.0,0.788]
[1717731182689,2.14534942,3806.1,3805.7,2.3985]
[1717731182870,0.56788671,3806.0,3805.9,0.788]
[1717731183692,1.57746271,3806.1,3805.9,0.788]
[1717731183990,2.14534942,3806.1,3805.9,0.79203514]
[1717731184169,1.57746271,3806.1,3805.9,0.79203514]
[1717731184386,2.14534942,3806.1,3805.9,0.79203514]
[1717731184838,1.57746271,3806.1,3805.9,0.00403514]
[1717731185042,2.14534942,3806.1,3806.0,0.788]
[1717731185243,1.57746271,3806.1,3806.0,0.79202133]
[1717731185475,1.57746271,3806.1,3806.0,0.00402133]
[1717731185682,4.20485271,3806.1,3805.7,2.3985]
[1717731185984,1.57746271,3805.9,3805.7,2.3985]
[1717731186192,1.57746271,3805.9,3805.8,0.788]
[1717731186357,2.14534942,3805.9,3805.8,0.788]
[1717731186739,0.56788671,3805.9,3805.8,0.788]
[1717731188850,0.56788671,3805.9,3805.8,1.1109]
[1717731189052,1.57757919,3806.0,3805.9,2.62749]
[1717731189285,1.57757919,3806.3,3805.9,3.41549]
[1717731189500,2.1454659,3806.5,3806.2,0.788]
[1717731189711,2.1454659,3806.5,3806.1,2.62735]
[1717731189712,2.1454659,3806.5,3806.4,0.788]
[1717731190024,1.57757919,3806.5,3806.4,0.788]
[1717731191595,1.57757919,3806.6,3806.4,0.788]
[1717731191901,1.57729573,3806.6,3806.4,0.788]
[1717731192063,1.57729573,3806.6,3806.5,0.02749165]
[1717731192399,0.56782646,3806.7,3806.4,0.788]
[1717731192571,0.56782646,3806.8,3806.5,0.02749165]
[1717731192752,0.56782646,3806.7,3806.5,0.02749165]
[1717731192952,0.56782646,3806.7,3806.4,0.788]
[1717731193156,2.6269,3806.8,3806.6,0.02750545]
[1717731193386,0.56784183,3806.7,3806.5,0.81549165]
[1717731193593,0.56784183,3806.6,3806.5,0.788]
[1717731193800,0.56784183,3806.7,3806.5,0.788]
[1717731194011,0.56784183,3806.6,3806.5,0.788]
[1717731194876,0.56784183,3806.7,3806.5,0.788]
[1717731195072,0.56784183,3806.6,3806.5,0.788]
[1717731195266,2.6269,3806.8,3806.5,0.788]
[1717731195267,0.56784183,3806.7,3806.5,0.788]
[1717731195662,0.56784183,3806.6,3806.5,0.788]
[1717731195862,0.56784183,3806.6,3806.1,2.62735]
[1717731195863,0.56784183,3806.7,3806.1,2.62735]
[1717731196203,1.57732872,3806.5,3806.3,2.62722]
[1717731196505,1.57732872,3806.5,3806.4,0.788]
[1717731196798,1.57732872,3806.6,3806.4,3.1643]
[1717731197003,1.57732872,3806.6,3806.5,0.788]
[1717731200635,1.57732872,3806.6,3806.5,1.367152]
[1717731200773,0.56784183,3806.8,3806.6,2.62701]
[1717731200963,7.464,3806.9,3806.8,2.62687]
[1717731201182,7.464,3806.9,3806.8,3.8182422]
[1717731202691,1.57732872,3807.3,3807.0,2.62667]
[1717731202892,2.14506004,3807.3,3807.1,0.788]
[1717731203594,0.56773132,3807.3,3807.0,2.62667]
[1717731203921,0.56773132,3807.3,3807.2,0.788]
[1717731204909,9.04132872,3807.4,3807.2,0.788]
[1717731205108,1.57732872,3807.4,3807.2,0.788]
[1717731205643,1.57700267,3807.5,3807.2,0.788]
[1717731206221,1.57700267,3807.4,3807.2,0.788]
[1717731206422,1.57700267,3807.5,3807.2,0.788]
[1717731206936,1.57700267,3807.4,3807.3,0.02722421]
[1717731207138,1.57700267,3807.4,3807.3,3.49069121]
[1717731207300,1.57700267,3807.4,3807.3,0.02722421]
[1717731208838,1.57700267,3807.5,3807.3,0.02722421]
[1717731210038,3.84150267,3807.5,3807.1,0.788]
[1717731210238,3.84150267,3807.5,3807.4,0.0270856]
[1717731210239,1.57700267,3807.5,3807.4,0.0270856]
[1717731210443,1.57700267,3807.5,3807.1,0.788]
[1717731210615,1.57700267,3807.5,3807.4,0.0270856]
[1717731210823,1.57700267,3807.5,3807.3,0.788]
[1717731211002,1.57700267,3807.5,3807.4,0.0270856]
[1717731211428,1.57700267,3807.6,3807.4,0.0270856]
[1717731211949,1.57700267,3807.6,3806.8,2.62681]
[1717731212115,1.57700267,3807.4,3807.0,0.788]
[1717731212647,1.57700267,3807.3,3807.0,0.788]
[1717731213252,1.57700267,3807.4,3806.8,2.62681]
[1717731213449,4.20357267,3807.3,3806.5,2.62706]
[1717731213677,2.62669,3807.1,3806.2,2.62727]
[1717731213974,1.57700267,3806.9,3806.4,0.788]
[1717731214716,4.20382267,3806.9,3806.4,0.788]
[1717731215388,4.20382267,3806.9,3806.2,2.62727]
[1717731215583,4.20398267,3806.7,3805.9,2.62745]
[1717731215914,1.57700267,3806.6,3806.2,0.788]
[1717731217625,1.57700267,3806.6,3805.9,2.62745]
[1717731217952,1.57700267,3806.6,3806.1,0.788]
[1717731218161,1.57700267,3806.5,3806.1,0.788]
[1717731218662,1.57700267,3806.5,3806.3,0.788]
[1717731218816,1.57700267,3806.5,3806.1,0.788]
[1717731219237,1.57700267,3806.5,3806.2,0.03116558]
[1717731219458,1.57700267,3806.5,3806.2,0.81916558]
[1717731219759,1.57700267,3806.5,3805.9,2.62745]
[1717731219967,1.57700267,3806.5,3806.3,0.03116558]
[1717731220138,1.57700267,3806.5,3806.1,0.788]
[1717731220461,4.20410267,3806.5,3806.4,0.03014038]
[1717731220682,3.34174036,3806.5,3805.8,0.788]
[1717731220834,2.6271,3806.5,3806.4,0.0304313]
[1717731221190,2.6271,3806.5,3805.6,2.62766]
[1717731221191,2.62724,3806.3,3805.7,0.788]
[1717731221466,1.57758039,3806.1,3805.6,2.62766]
[1717731221628,1.57758039,3806.1,3805.8,0.0304313]
[1717731222669,1.57758039,3806.1,3805.9,0.788]
[1717731222987,1.57758039,3806.1,3806.0,0.02640997]
[1717731223267,1.57758039,3806.1,3805.8,0.00404895]
[1717731223427,1.57758039,3806.1,3806.0,0.0304313]
[1717731224146,1.57758039,3806.2,3806.0,0.0304313]
[1717731225259,4.20482039,3806.3,3806.0,0.0304313]
[1717731225764,4.20482039,3806.3,3805.4,5.2745]
[1717731225929,1.57758039,3806.2,3806.1,0.00400753]
[1717731226129,2.62724,3806.3,3805.9,0.788]
[1717731226329,1.57762914,3806.2,3806.1,0.00400753]
[1717731226557,1.57762914,3806.2,3805.9,0.788]
[1717731226768,1.57762914,3806.2,3806.1,0.00400753]
[1717731226979,1.57762914,3806.2,3805.7,0.788]
[1717731227187,1.57762914,3806.2,3806.1,0.00400753]
[1717731227381,1.57762914,3806.2,3805.9,0.788]
[1717731227587,1.57762914,3806.2,3806.1,0.00400753]
[1717731227786,1.57762914,3806.2,3805.7,0.788]
[1717731227961,1.57762914,3806.2,3806.1,0.00400753]
[1717731228163,1.57762914,3806.2,3805.7,0.788]
[1717731228391,1.57762914,3806.2,3806.1,0.00400753]
[1717731228555,1.57762914,3806.2,3806.0,0.788]
[1717731228755,1.57762914,3806.2,3806.1,0.00400753]
[1717731228980,1.57762914,3806.2,3805.8,0.788]
[1717731229195,2.62724,3806.3,3806.1,0.00400753]
[1717731229391,1.57761078,3806.2,3806.1,0.00400753]
[1717731230262,1.57761078,3806.2,3805.8,0.788]
[1717731230464,1.57761078,3806.2,3806.1,0.00400753]
[1717731230718,1.57761078,3806.2,3805.8,1.21649987]
[1717731230898,1.57761078,3806.2,3806.1,0.00400753]
[1717731231698,1.57761078,3806.2,3806.0,0.788]
[1717731231997,1.57761078,3806.2,3806.1,0.00400753]
[1717731232300,1.57761078,3806.2,3806.0,3.41539]
[1717731232595,1.57761078,3806.3,3806.1,0.00400753]
[1717731232756,1.57761078,3806.5,3806.2,0.788]
[1717731232956,1.57761078,3806.5,3806.3,0.00397992]
[1717731233467,1.57761078,3806.6,3806.4,0.788]
[1717731233985,1.57761078,3806.6,3806.5,0.00395231]
[1717731234183,1.57761078,3806.6,3806.4,0.788]
[1717731234389,1.57761078,3806.6,3806.5,0.00395231]
[1717731234598,1.57761078,3806.6,3806.4,0.788]
[1717731234763,1.57761078,3806.7,3806.5,0.00378656]
[1717731235104,1.57761078,3806.7,3806.4,0.788]
[1717731235303,3.19476677,3806.9,3806.6,0.00377276]
[1717731235501,3.19476677,3806.9,3806.5,0.00378656]
[1717731235709,2.62684,3806.9,3806.7,0.00375896]
[1717731235877,3.19468703,3806.9,3806.6,0.00377276]
[1717731236067,1.57734335,3806.7,3806.4,0.788]
[1717731236268,1.57734335,3806.6,3806.4,0.788]
[1717731236564,1.57734335,3806.6,3806.5,0.00378656]
[1717731236963,1.57734335,3806.6,3806.5,0.03045997]
[1717731238283,0.56784703,3806.8,3806.5,0.03045997]
[1717731238478,0.56784703,3806.7,3806.5,0.03045997]
[1717731238993,1.57736192,3806.6,3806.5,0.03045997]
[1717731240498,0.56784703,3806.7,3806.5,0.03045997]
[1717731240499,0.56783682,3806.8,3806.5,0.03045997]
[1717731240697,0.56783682,3806.7,3806.5,0.03045997]
[1717731240909,0.56783682,3806.8,3806.5,0.03045997]
[1717731241123,0.56783682,3806.7,3806.6,0.788]
[1717731241296,0.56783682,3806.7,3806.6,0.79177276]
[1717731241509,1.57722246,3806.7,3806.6,0.81845998]
[1717731242324,7.464,3807.1,3806.6,0.81845998]
[1717731242325,0.56783682,3806.9,3806.6,0.81845998]
[1717731242529,1.57721273,3806.7,3806.6,0.81845998]